bitfinex-derivatives/quotes_SOLF0:USTF0_20251230
["timestamp","ask_amount","ask_price","bid_price","bid_amount"]
[1767056631056,96.22,122.92,122.85,3.3472585]
[1767056631863,0.05609336,122.9,122.85,3.3472585]
[1767056633270,10.55221752,122.94,122.85,3.3472585]
[1767056633468,98.1,122.95,122.85,3.29]
[1767056633967,1.88,122.95,122.85,3.29]
[1767056634268,0.05185192,122.91,122.89,0.06114886]
[1767056634567,0.00185192,122.91,122.89,3.56114886]
[1767056642877,99.44251752,122.96,122.89,3.56114886]
[1767056643268,106.77071752,122.96,122.89,3.56114886]
[1767056643867,0.05801472,122.94,122.89,3.56114886]
[1767056681014,2.06169611,122.93,122.89,3.56114886]
[1767056683323,11.32169611,122.93,122.89,3.56114886]
[1767056685416,0.05801472,122.94,122.89,3.56114886]
[1767056685725,2.11971083,122.94,122.89,3.56114886]
[1767056687215,0.05801472,122.94,122.89,3.56114886]
[1767056704230,9.38979611,122.96,122.89,3.56114886]
[1767056704532,7.3287,122.95,122.89,3.56114886]
[1767056705343,0.05964032,122.93,122.89,3.56114886]
[1767056706746,7.3287,122.95,122.89,3.56114886]
[1767056707745,0.05990184,122.93,122.89,3.56114886]
[1767056707939,7.3287,122.95,122.89,3.56114886]
[1767056708347,4.05169611,122.96,122.89,3.56114886]
[1767056708848,0.0606063,122.94,122.89,3.56114886]
[1767056712446,2.12230241,122.94,122.89,3.56114886]
[1767056723041,0.0606063,122.94,122.89,3.56114886]
[1767056726144,2.11,122.93,122.89,3.56114886]
[1767056726349,4.17169611,122.92,122.87,3.37]
[1767056727354,0.05900913,122.91,122.88,0.05749911]
[1767056728764,5.33292671,122.94,122.88,3.42749911]
[1767056728957,2.11,122.94,122.88,3.42749911]
[1767056729862,0.06252853,122.92,122.88,3.42749911]
[1767056737873,0.00252853,122.92,122.88,3.42749911]
[1767056754178,0.00252853,122.92,122.88,10.76019911]
[1767056754881,0.00252853,122.92,122.89,3.21]
[1767056768769,99.40292671,122.96,122.89,3.21]
[1767056769085,2.23,122.97,122.9,3.21]
[1767056769271,2.23,122.97,122.91,3.21]
[1767056769979,0.06192209,122.95,122.93,0.05610667]
[1767056781792,0.00192209,122.95,122.93,3.32610667]
[1767056784393,0.00192209,122.95,122.93,0.05610667]
[1767056784892,0.00192209,122.95,122.91,3.27]
[1767056785793,0.00192209,122.95,122.92,0.06089715]
[1767056786892,0.00192209,122.95,122.92,3.33089715]
[1767056806919,7.3267,122.99,122.92,3.33089715]
[1767056807115,11.67819967,122.98,122.92,3.33089715]
[1767056807418,11.67819967,122.98,122.92,3.27]
[1767056807917,0.05436788,122.96,122.94,0.06135352]
[1767056834238,0.00436788,122.96,122.94,3.54135352]
[1767056866071,24.46,123.06,122.94,3.54135352]
[1767056866072,5.55938999,123.03,122.94,3.54135352]
[1767056866271,101.71938999,123.03,122.94,3.48]
[1767056866972,101.71938999,123.03,122.93,10.10126799]
[1767056866973,0.06070936,123.0,122.97,3.56907574]
[1767056871376,101.71938999,123.03,122.97,3.56907574]
[1767056872278,99.37938999,123.03,122.97,3.56907574]
[1767056872475,0.04670541,123.01,122.97,3.56907574]
[1767056877583,7.37200541,123.01,122.97,7.574e-05]
[1767056878677,7.37200541,123.01,122.98,0.05999959]
[1767056878879,7.37200541,123.01,122.97,7.574e-05]
[1767056879979,7.37200541,123.01,122.98,0.06071462]
[1767056880178,7.37200541,123.01,122.97,7.574e-05]
[1767056881275,7.37200541,123.01,122.98,0.06205832]
[1767056881679,7.37200541,123.01,122.98,5.832e-05]
[1767056882681,7.37200541,123.01,122.98,0.06018274]
[1767056884190,0.04670541,123.01,122.98,0.06018274]
[1767056894806,0.04670541,123.01,122.98,0.06012442]
[1767056895607,7.37210541,123.01,122.97,3.32]
[1767056895808,13.99478999,123.01,122.93,96.14]
[1767056896114,110.11478999,123.01,122.93,96.14]
[1767056896818,0.05170259,122.98,122.96,0.05915807]
[1767056914341,0.00170259,122.98,122.96,3.31915807]
[1767056915640,2.05989238,123.0,122.96,3.31915807]
[1767056916027,5.50989238,123.01,122.96,3.31915807]
[1767056916234,5.50989238,123.03,122.96,3.31915807]
[1767056916636,0.05800111,123.01,122.96,3.31915807]
[1767056918938,0.05800111,123.01,122.96,13.42042606]
[1767056919135,0.05800111,123.01,122.97,3.26]
[1767057001408,3.34800111,123.01,122.96,0.05915807]
[1767057001605,3.34800111,123.01,122.96,3.39915807]
[1767057001810,0.05800111,123.01,122.96,3.39915807]
[1767057020929,0.05800111,123.01,122.96,10.72705807]
[1767057021227,0.05800111,123.01,122.97,3.29]
[1767057022329,0.05800111,123.01,122.98,3.29]
[1767057039245,0.05800111,123.01,122.98,10.6165]
[1767057039541,0.05800111,123.01,122.99,3.29]
[1767057039741,0.05800111,123.01,122.99,3.34799349]
[1767057072674,0.05800111,123.01,122.99,10.67409349]
[1767057072870,5.32895651,123.08,123.01,3.41]
[1767057073274,5.32895651,123.08,123.02,3.41]
[1767057073477,5.32895651,123.1,123.03,3.41]
[1767057073974,0.05697168,123.08,123.05,0.05130681]
[1767057101897,3.5,123.11,123.05,3.59130681]
[1767057102093,3.5,123.11,123.05,3.54]
[1767057102906,0.05652302,123.09,123.07,0.05339806]
[1767057103097,3.5,123.11,123.07,0.05339806]
[1767057104107,0.05973048,123.1,123.07,0.05339806]
[1767057107511,0.05973048,123.1,123.07,3.29339806]
[1767057107711,3.43,123.13,123.07,3.29339806]
[1767057108710,0.05433043,123.11,123.07,3.29339806]
[1767057121225,0.05433043,123.11,123.07,99.33339806]
[1767057121426,0.05433043,123.11,123.08,3.28]
[1767057122022,0.05433043,123.11,123.08,10.6007]
[1767057122332,0.05433043,123.11,123.09,3.28]
[1767057127326,0.05433043,123.11,123.09,10.6001]
[1767057127630,3.28,123.17,123.11,3.28]
[1767057127828,3.28,123.19,123.11,3.28]
[1767057128031,3.28,123.19,123.12,3.28]
[1767057128528,3.28,123.19,123.14,0.05324427]
[1767057129228,3.28,123.19,123.14,3.33324427]
[1767057134429,3.28,123.19,123.14,0.05324427]
[1767057135629,3.28,123.18,123.11,3.28]
[1767057135833,3.35,123.16,123.11,3.28]
[1767057136025,3.35,123.16,123.09,3.47]
[1767057136628,0.05157557,123.14,123.11,0.06052363]
[1767057139235,3.40157557,123.14,123.11,0.06052363]
[1767057142443,0.05157557,123.14,123.11,0.06052363]
[1767057142639,0.05157557,123.14,123.11,3.53052363]
[1767057154667,0.05157557,123.14,123.11,0.06052363]
[1767057164659,3.40157557,123.14,123.11,0.06052363]
[1767057173181,3.23,123.13,123.07,3.44]
[1767057174180,3.23,123.13,123.09,0.05495596]
[1767057174181,0.05965188,123.11,123.09,0.05495596]
[1767057180276,108.86177929,123.15,123.09,3.30495596]
[1767057180478,3.47,123.14,123.09,3.25]
[1767057181282,0.05677625,123.13,123.1,0.06118281]
[1767057181682,3.52677625,123.13,123.1,0.06118281]
[1767057185278,3.47,123.12,123.07,3.25]
[1767057185482,3.47,123.12,123.06,277.35635327]
[1767057186284,0.05998722,123.1,123.08,0.05624591]
[1767057186984,0.05998722,123.1,123.06,3.25]
[1767057187985,0.05998722,123.1,123.07,0.05271484]
[1767057190491,3.52998722,123.1,123.04,3.25]
[1767057191389,5.52467929,123.09,123.04,3.25]
[1767057191691,3.47,123.08,123.05,0.06153007]
[1767057193592,3.47,123.08,123.02,3.25]
[1767057194691,0.05824366,123.06,123.04,0.05592186]
[1767057214304,0.05824366,123.06,123.02,3.25]
[1767057215210,0.05824366,123.06,123.03,0.05889254]
[1767057219709,0.05824366,123.06,123.03,3.40889254]
[1767057241323,0.05824366,123.06,123.03,0.05889254]
[1767057241618,3.48824366,123.06,123.03,0.05889254]
[1767057241824,3.43,123.05,122.99,3.24]
[1767057242222,6.64494333,123.04,122.99,3.24]
[1767057242417,3.43,123.03,122.99,3.24]
[1767057242725,0.05998519,123.02,123.0,0.05746728]
[1767057249327,7.3234,123.04,123.0,3.29746728]
[1767057250229,0.05463495,123.03,123.0,3.29746728]
[1767057258036,0.05463495,123.03,123.0,0.05746728]
[1767057264233,0.05463495,123.03,123.0,3.44746728]
[1767057275948,3.56463495,123.03,122.98,3.39]
[1767057277048,3.56463495,123.03,122.99,0.05343327]
[1767057278458,2.05924815,123.02,122.99,0.05343327]
[1767057300358,3.52,123.01,122.96,3.48]
[1767057300557,3.52,122.99,122.95,1.41500803]
[1767057300863,3.52,122.99,122.94,3.48]
[1767057301355,0.06057141,122.98,122.94,3.48]
[1767057301553,0.06057141,122.98,122.95,0.05407093]
[1767057301957,3.57057141,122.98,122.95,0.05407093]
[1767057303056,3.57057141,122.98,122.92,4.68549725]
[1767057303057,3.41,122.97,122.92,4.68549725]
[1767057303257,3.41,122.97,122.92,3.27]
[1767057304156,3.41,122.97,122.93,0.06008898]
[1767057310277,3.35,122.95,122.93,8.898e-05]
[1767057311464,3.41196176,122.95,122.93,8.898e-05]
[1767057318376,0.06196176,122.95,122.93,8.898e-05]
[1767057318583,3.35,122.97,122.93,8.898e-05]
[1767057319580,0.05126119,122.96,122.93,8.898e-05]
[1767057319776,3.40126119,122.96,122.93,8.898e-05]
[1767057332891,3.35,122.95,122.93,8.898e-05]
[1767057336491,3.35,122.95,122.88,4.7859292]
[1767057336797,3.35,122.93,122.87,7.3331]
[1767057337493,0.05906928,122.91,122.89,0.05891046]
[1767057345098,3.35,122.93,122.89,0.05891046]
[1767057346104,0.05564617,122.92,122.89,0.05891046]
[1767057347299,3.35,122.96,122.89,3.53891046]
[1767057348299,0.0617902,122.94,122.89,3.53891046]
[1767057348505,0.0017902,122.94,122.91,3.48]
[1767057350208,0.0017902,122.94,122.89,3.53891046]
[1767057352306,3.4117902,122.94,122.89,0.05891046]
[1767057353606,3.41,122.93,122.89,0.05891046]
[1767057354500,3.41,122.93,122.86,10.8137]
[1767057355608,0.05600351,122.91,122.88,0.06154656]
[1767057358922,0.05600351,122.91,122.88,3.60154656]
[1767057362910,3.35600351,122.91,122.88,0.00154656]
[1767057363112,3.29,122.9,122.84,3.54]
[1767057364017,0.05768236,122.88,122.86,0.05529674]
[1767057366408,3.28768236,122.88,122.86,0.05529674]
[1767057370517,0.05768236,122.88,122.86,0.05529674]
[1767057372926,3.23,122.9,122.86,0.05529674]
[1767057373722,3.23,122.92,122.86,3.59529674]
[1767057373926,3.23,122.94,122.87,3.54]
[1767057374222,3.23,122.94,122.89,3.59798246]
[1767057374616,3.23,122.96,122.89,3.59798246]
[1767057374817,3.23,122.96,122.89,3.54]
[1767057375129,0.05757263,122.94,122.91,0.0609789]
[1767057376031,0.05757263,122.94,122.91,3.3109789]
[1767057376230,3.23,122.98,122.91,3.3109789]
[1767057376419,3.23,122.98,122.91,3.25]
[1767057377127,0.05354319,122.96,122.93,0.05340081]
[1767057380433,3.34354319,122.96,122.93,0.05340081]
[1767057381432,0.05354319,122.96,122.93,0.05340081]
[1767057382838,3.34354319,122.96,122.93,0.05340081]
[1767057383132,3.34354319,122.96,122.93,0.00340081]
[1767057391236,0.05354319,122.96,122.93,0.00340081]
[1767057409438,3.29354319,122.96,122.93,0.00340081]
[1767057409754,2.06081512,122.95,122.89,3.33]
[1767057410151,5.30081512,122.95,122.89,3.33]
[1767057410849,0.05548917,122.93,122.91,0.06088198]
[1767057414355,3.24,122.95,122.91,0.06088198]
[1767057415451,0.05228545,122.94,122.91,0.06088198]
[1767057429554,12.62781512,122.98,122.91,3.41088198]
[1767057429860,3.24,122.98,122.92,3.35]
[1767057430751,0.05685564,122.96,122.94,0.05864856]
[1767057434459,3.24,122.98,122.94,0.05864856]
[1767057435164,3.24,123.02,122.96,3.35]
[1767057435462,4.15727119,123.04,122.98,3.41194511]
[1767057435463,3.24,123.04,122.98,3.41194511]
[1767057436466,0.0570391,123.02,122.98,3.41194511]
[1767057445781,3.24,123.04,122.98,3.41194511]
[1767057445977,3.23,123.06,123.0,3.27]
[1767057446479,3.23,123.06,123.01,99.39]
[1767057446883,0.05511614,123.05,123.02,0.05668655]
[1767057450484,5.29081512,123.08,123.02,3.32668655]
[1767057450784,5.29081512,123.08,123.02,99.42668655]
[1767057451482,3.23,123.07,123.02,99.42668655]
[1767057454382,2.06081512,123.08,123.03,3.27]
[1767057454889,2.06081512,123.08,123.03,99.37]
[1767057455078,5.29081512,123.09,123.04,3.27]
[1767057455280,5.29081512,123.09,123.05,0.05266739]
[1767057459100,3.23,123.09,123.05,0.05266739]
[1767057459691,5.29081512,123.11,123.05,3.32266739]
[1767057460294,3.23,123.1,123.05,3.32266739]
[1767057460990,3.23,123.1,123.05,0.05266739]
[1767057472699,3.23,123.1,123.05,3.50266739]
[1767057475802,3.23,123.1,123.05,0.05266739]
[1767057482211,3.23,123.1,123.05,0.00266739]
[1767057483311,3.18,123.08,123.05,0.00266739]
[1767057484605,3.18,123.11,123.05,3.49266739]
[1767057494022,3.18,123.11,123.06,3.49]
[1767057494615,7.3177,123.14,123.06,3.49]
[1767057494818,3.18,123.13,123.09,0.0576685]
[1767057502228,99.24,123.15,123.09,3.3576685]
[1767057502626,3.18,123.14,123.09,3.3576685]
[1767057503133,3.18,123.14,123.09,0.0576685]
[1767057505740,3.18,123.14,123.09,3.3576685]
[1767057509240,110.61306987,123.17,123.09,3.3576685]
[1767057509540,0.05340804,123.14,123.1,3.3]
[1767057512143,3.23340804,123.14,123.08,3.3]
[1767057512340,3.23340804,123.14,123.1,0.05852]
[1767057512539,0.05908894,123.13,123.1,0.05852]
[1767057514142,0.05908894,123.13,123.1,3.35852]
[1767057514345,7.22427619,123.17,123.11,2.28172069]
[1767057514643,3.18,123.17,123.11,2.28172069]
[1767057515348,0.06193983,123.15,123.13,0.05786484]
[1767057526151,3.18,123.17,123.13,3.37786484]
[1767057527247,0.05420558,123.16,123.13,3.37786484]
[1767057533362,2.20970336,123.17,123.13,3.37786484]
[1767057533560,9.36809171,123.2,123.14,3.54]
[1767057533761,2.05419171,123.2,123.14,3.54]
[1767057534259,103.3329,123.22,123.14,3.54]
[1767057534458,2.05419171,123.21,123.17,0.05902399]
[1767057535462,3.31,123.2,123.17,0.05902399]
[1767057536861,3.31,123.2,123.14,3.54]
[1767057537868,0.0581727,123.18,123.16,0.06155588]
[1767057542867,0.0581727,123.18,123.16,3.32155588]
[1767057543170,3.31,123.2,123.16,3.32155588]
[1767057543573,3.31,123.2,123.16,0.06155588]
[1767057545171,3.31,123.2,123.16,0.00155588]
[1767057545380,3.31,123.18,123.16,0.00155588]
[1767057546170,3.37085129,123.18,123.16,0.00155588]
[1767057567195,0.06085129,123.18,123.16,0.00155588]
[1767057568098,3.31,123.21,123.16,0.00155588]
[1767057568399,3.31,123.21,123.16,3.54155588]
[1767057575708,3.31,123.23,123.17,3.54]
[1767057576003,3.31,123.23,123.19,3.59843909]
[1767057577699,3.31,123.26,123.19,3.59843909]
[1767057579007,3.31,123.26,123.2,3.54]
[1767057580207,0.05403414,123.24,123.2,3.54]
[1767057581213,0.05403414,123.24,123.21,0.05521672]
[1767057583313,0.05403414,123.24,123.21,3.59521672]
[1767057583716,0.05403414,123.24,123.21,0.05521672]
[1767057584715,3.36403414,123.24,123.21,0.05521672]
[1767057591307,3.36403414,123.24,123.17,3.44]
[1767057592312,3.36403414,123.24,123.19,0.05262814]
[1767057600426,3.28,123.23,123.19,0.05262814]
[1767057600727,3.28,123.23,123.19,3.51262814]
[1767057612340,3.28,123.23,123.19,0.05262814]
[1767057617140,3.28,123.23,123.19,0.00262814]
[1767057620859,3.34,123.22,123.19,0.00262814]
[1767057624655,3.34,123.21,123.14,10.797]
[1767057625653,0.05555468,123.19,123.16,0.06135971]
[1767057628761,3.34,123.21,123.16,0.06135971]
[1767057630058,0.05481527,123.2,123.16,0.06135971]
[1767057630467,0.05481527,123.2,123.16,3.54135971]
[1767057631757,0.05481527,123.2,123.16,10.85735971]
[1767057632160,3.39481527,123.2,123.16,0.06135971]
[1767057635558,3.39481527,123.2,123.16,0.00135971]
[1767057642469,5.44829439,123.2,123.16,0.00135971]
[1767057643169,3.34,123.19,123.16,0.00135971]
[1767057645865,3.46,123.17,123.16,0.00135971]
[1767057646360,3.46,123.17,123.11,282.43772722]
[1767057647469,0.06132083,123.15,123.13,0.05532844]
[1767057658787,3.35132083,123.15,123.09,101.48347912]
[1767057659088,3.35132083,123.15,123.09,99.43]
[1767057659788,3.35132083,123.15,123.11,0.06046491]
[1767057665582,5.34347912,123.14,123.11,0.00046491]
[1767057665788,3.29,123.13,123.11,0.00046491]
[1767057668895,3.35132083,123.15,123.11,3.45046491]
[1767057670080,3.35132083,123.15,123.11,0.00046491]
[1767057690615,3.53,123.13,123.06,9.03857241]
[1767057690907,3.53,123.13,123.06,3.33]
[1767057691404,3.53,123.13,123.07,3.33]
[1767057691604,3.53,123.13,123.09,0.05890113]
[1767057691605,0.05181162,123.11,123.09,0.05890113]
[1767057693908,3.58181162,123.11,123.05,3.33]
[1767057694907,3.58181162,123.11,123.07,0.05199441]
[1767057700214,3.58181162,123.11,123.05,3.33]
[1767057701014,3.58181162,123.11,123.07,0.05797281]
[1767057722352,3.58181162,123.11,123.04,7.3231]
[1767057722553,3.19,123.1,123.03,3.27]
[1767057723558,3.24315719,123.08,123.05,0.05650986]
[1767057723760,3.24315719,123.08,123.01,3.27]
[1767057724848,3.24315719,123.08,123.03,0.05897631]
[1767057730459,3.24315719,123.08,123.03,3.32897631]
[1767057742364,3.24315719,123.08,123.03,10.65267631]
[1767057754378,3.24315719,123.08,123.04,3.2]
[1767057756778,0.05315719,123.08,123.04,3.2]
[1767057760881,3.49315719,123.08,123.03,7.38267631]
[1767057761175,3.49315719,123.08,123.03,0.05897631]
[1767057764582,5.55056313,123.08,123.03,0.05897631]
[1767057765284,3.44,123.07,123.03,0.05897631]
[1767057775479,0.05315719,123.08,123.03,3.34897631]
[1767057775679,3.59315719,123.08,123.03,3.34897631]
[1767057780192,3.59315719,123.08,123.03,12.73018225]
[1767057780389,3.54,123.1,123.04,3.29]
[1767057780588,3.54,123.12,123.06,3.29]
[1767057781488,0.05903933,123.1,123.08,0.05264625]
[1767057788199,3.54,123.14,123.08,3.34264625]
[1767057788596,3.54,123.14,123.09,5.34740594]
[1767057789201,0.05214525,123.13,123.09,5.34740594]
[1767057791902,0.05214525,123.13,123.1,3.29]
[1767057794497,0.05214525,123.13,123.1,10.6096]
[1767057794704,3.54,123.16,123.11,3.29]
[1767057795705,0.05704058,123.15,123.12,0.06044932]
[1767057807006,3.48704058,123.15,123.12,0.00044932]
[1767057807913,3.48704058,123.15,123.09,99.29]
[1767057808917,3.43,123.13,123.07,5.30740594]
[1767057809117,3.43,123.13,123.07,3.25]
[1767057809910,0.05942447,123.11,123.09,0.05914393]
[1767057815210,3.43,123.14,123.09,3.30914393]
[1767057816123,0.05803429,123.13,123.09,3.30914393]
[1767057822827,3.48803429,123.13,123.09,3.30914393]
[1767057834639,0.05803429,123.13,123.09,3.30914393]
[1767057843139,3.55803429,123.13,123.09,0.05914393]
[1767057868864,3.55803429,123.13,123.09,3.59914393]
[1767057869361,0.05803429,123.13,123.09,3.59914393]
[1767057895897,3.58803429,123.13,123.09,3.59914393]
[1767057896490,3.58803429,123.13,123.09,0.05914393]
[1767057900198,3.58803429,123.13,123.09,3.38914393]
[1767057906306,0.05803429,123.13,123.09,3.38914393]
[1767057919618,3.34803429,123.13,123.09,0.05914393]
[1767057919828,5.4031141,123.13,123.09,0.05914393]
[1767057922728,3.34803429,123.13,123.09,0.05914393]
[1767057927534,2.1131141,123.13,123.06,3.52]
[1767057927728,3.29,123.12,123.06,3.52]
[1767057928625,0.05887233,123.1,123.08,0.06012186]
[1767057978682,7.3181,123.13,123.08,3.49012186]
[1767057978975,3.22,123.14,123.08,99.53012186]
[1767057979181,3.22,123.14,123.09,3.43]
[1767057979781,0.06248781,123.13,123.09,3.43]
[1767057989786,3.22,123.16,123.09,3.43]
[1767057990688,0.05892207,123.14,123.11,0.05487746]
[1767057990988,3.22,123.16,123.11,3.48487746]
[1767057991982,0.0586132,123.15,123.11,3.48487746]
[1767058003296,3.2786132,123.15,123.11,3.48487746]
[1767058006301,3.2786132,123.15,123.11,0.05487746]
[1767058018696,3.2786132,123.15,123.11,3.41487746]
[1767058022405,3.2786132,123.15,123.11,0.05487746]
[1767058047639,3.2786132,123.15,123.11,0.00487746]
[1767058084368,3.26933499,123.15,123.08,20.68176799]
[1767058084568,3.53,123.14,123.06,20.71296799]
[1767058084764,3.53,123.12,123.06,20.71296799]
[1767058085369,3.53,123.12,123.06,3.29]
[1767058085578,0.0538582,123.1,123.08,0.05755296]
[1767058105196,99.56,123.13,123.08,0.05755296]
[1767058105798,3.54,123.12,123.08,0.05755296]
[1767058106198,0.06161206,123.11,123.08,0.05755296]
[1767058119706,3.60161206,123.11,123.08,0.05755296]
[1767058119909,3.60161206,123.11,123.05,3.49]
[1767058120307,3.54,123.09,123.03,13.59126799]
[1767058120506,3.54,123.08,123.01,13.59126799]
[1767058120711,3.54,123.08,123.01,3.49]
[1767058120915,3.59307606,123.06,123.03,0.05173325]
[1767058126516,5.65095464,123.06,123.03,0.05173325]
[1767058127120,3.59307606,123.06,123.03,0.05173325]
[1767058127316,5.65095464,123.06,123.03,0.05173325]
[1767058145037,3.59307606,123.06,123.03,0.05173325]
[1767058176275,3.59307606,123.06,123.03,0.00173325]
[1767058203103,0.05307606,123.06,123.03,0.00173325]
[1767058204701,3.53307606,123.06,123.03,0.00173325]
[1767058221718,0.05307606,123.06,123.03,3.52173325]
[1767058221916,3.41,123.08,123.03,3.52173325]
[1767058222110,3.41,123.08,123.03,13.62300124]
[1767058222310,3.41,123.08,123.03,3.52173325]
[1767058222519,3.41,123.08,123.03,13.62300124]
[1767058222719,3.41,123.08,123.04,7.62089282]
[1767058222921,0.05876428,123.07,123.04,7.62089282]
[1767058232325,0.05876428,123.07,123.03,11.14262607]
[1767058233722,0.05876428,123.07,123.04,7.62089282]
[1767058241728,0.05876428,123.07,123.03,11.14262607]
[1767058242129,3.46876428,123.07,123.03,11.14262607]
[1767058244546,0.05876428,123.07,123.03,11.14262607]
[1767058250647,0.05876428,123.07,123.03,18.46632607]
[1767058251544,193.19878546,123.09,123.04,14.94389282]
[1767058251757,193.19878546,123.09,123.05,3.31]
[1767058252252,189.78878546,123.09,123.05,3.31]
[1767058252454,0.06225109,123.08,123.06,0.05754013]
[1767058261055,5.4092765,123.08,123.04,7.62089282]
[1767058262060,5.4092765,123.08,123.05,0.05379398]
[1767058263360,5.4092765,123.08,123.05,7.6746868]
[1767058287273,3.35225109,123.08,123.05,7.6746868]
[1767058293893,3.35225109,123.08,123.05,7.67752752]
[1767058296094,3.3,123.07,123.05,0.05379398]
[1767058330811,1.25325294,123.07,123.05,0.05379398]
[1767058334214,0.06225109,123.08,123.05,0.05379398]
[1767058334517,0.06225109,123.08,123.06,10.94373354]
[1767058335018,0.00225109,123.08,123.06,10.94373354]
[1767058336116,0.00225109,123.08,123.06,3.32]
[1767058348827,0.00225109,123.08,123.06,10.6419]
[1767058350837,0.00225109,123.08,123.06,18.26563354]
[1767058351233,0.00225109,123.08,123.06,10.6419]
[1767058352136,0.00225109,123.08,123.07,3.31]
[1767058354339,0.00225109,123.08,123.07,99.35]
[1767058354534,0.00225109,123.08,123.07,3.31]
[1767058354738,0.00225109,123.08,123.07,99.35]
[1767058365453,0.00225109,123.08,123.07,96.04]
[1767058379255,0.00225109,123.08,123.07,103.66373354]
[1767058383059,0.00225109,123.08,123.07,7.62373354]
[1767058383261,0.00225109,123.08,123.06,7.62373354]
[1767058383968,0.00225109,123.08,123.05,7.67752752]
[1767058385068,3.22225109,123.08,123.05,7.67752752]
[1767058385270,3.22225109,123.08,123.05,0.05379398]
[1767058386071,3.22225109,123.08,123.05,0.00379398]
[1767058387273,3.22225109,123.08,123.02,10.83373354]
[1767058387765,3.22,123.06,123.0,3.21]
[1767058388360,3.22,123.03,123.02,0.00273949]
[1767058388567,2.52,123.02,122.96,3.21]
[1767058389569,0.06074323,123.0,122.96,3.21]
[1767058390667,0.06074323,123.0,122.97,0.06158263]
[1767058391365,2.58074323,123.0,122.97,0.06158263]
[1767058392963,4.20074323,123.0,122.97,0.06158263]
[1767058393178,2.46,122.98,122.91,3.21]
[1767058393365,2.46,122.96,122.89,3.21]
[1767058394171,0.06201575,122.94,122.91,0.06207375]
[1767058394374,2.54201575,122.94,122.91,0.06207375]
[1767058397982,0.06201575,122.94,122.91,3.46207375]
[1767058398175,2.64,122.98,122.91,3.46207375]
[1767058398369,2.64,122.98,122.91,3.4]
[1767058399081,0.0513979,122.96,122.93,0.05775523]
[1767058402279,0.0513979,122.96,122.93,3.45775523]
[1767058402580,2.72,122.99,122.93,3.45775523]
[1767058403378,0.05351681,122.97,122.93,3.45775523]
[1767058405984,0.00351681,122.97,122.93,3.45775523]
[1767058409088,2.84,123.0,122.94,3.4]
[1767058409986,2.84,123.0,122.95,3.4]
[1767058410188,0.06084195,122.99,122.96,0.05314507]
[1767058411285,2.93,123.03,122.97,3.4]
[1767058411485,2.99,123.05,122.98,5.4558828]
[1767058411684,2.99,123.05,122.95,113.9983]
[1767058411685,3.01,123.03,122.96,3.4]
[1767058411888,3.01,123.03,122.95,96.14]
[1767058412285,0.05288853,123.0,122.98,0.05310042]
[1767058412484,0.05288853,123.0,122.95,99.54]
[1767058413490,0.05288853,123.0,122.96,0.0529127]
[1767058419301,3.03288853,123.0,122.96,0.0529127]
[1767058419897,2.92,122.99,122.96,0.0029127]
[1767058420597,2.92,122.98,122.96,0.0029127]
[1767058420798,4.9758828,122.98,122.96,0.0029127]
[1767058420995,2.92,122.97,122.96,0.0029127]
[1767058421601,2.92,122.97,122.91,3.4]
[1767058422600,0.06075395,122.95,122.93,0.05697446]
[1767058423598,2.91075395,122.95,122.89,101.5958828]
[1767058424297,2.91075395,122.95,122.9,3.4]
[1767058424604,2.91075395,122.95,122.91,0.05605056]
[1767058428309,2.91075395,122.95,122.88,11.0125]
[1767058429306,2.91075395,122.95,122.9,0.05861374]
[1767058436716,2.91075395,122.95,122.9,3.44861374]
[1767058439810,0.06075395,122.95,122.9,3.44861374]
[1767058440215,0.06075395,122.95,122.91,3.39]
[1767058440717,2.73,122.97,122.91,3.39]
[1767058441604,2.73,122.97,122.92,3.39]
[1767058441807,0.05446929,122.96,122.93,0.05194004]
[1767058442618,2.77446929,122.96,122.93,0.00194004]
[1767058455029,0.05446929,122.96,122.93,0.00194004]
[1767058456333,2.68446929,122.96,122.93,0.00194004]
[1767058456724,2.63,122.94,122.93,0.00194004]
[1767058457028,2.68446929,122.96,122.93,0.00194004]
[1767058460436,2.62,122.95,122.93,0.00194004]
[1767058463940,98.8,122.95,122.93,0.00194004]
[1767058464545,0.05446929,122.96,122.93,0.00194004]